bitfinex/quotes_ETHUSD_20250605
["timestamp","ask_amount","ask_price","bid_price","bid_amount"]
[1749150673800,0.36378101,2573.1,2572.5,0.38874203]
[1749150673964,7.3039,2573.2,2572.8,3.88672986]
[1749150674157,0.36377498,2573.1,2572.5,0.38874203]
[1749150674358,0.36384458,2573.0,2572.8,3.88670533]
[1749150674678,7.3039,2573.2,2572.9,3.88662493]
[1749150674882,0.3640144,2573.1,2572.9,3.88662493]
[1749150675094,0.3640144,2573.0,2572.9,3.88662493]
[1749150675694,0.3640144,2573.0,2572.5,0.38874203]
[1749150675901,8.98216729,2572.9,2572.1,5.6347844]
[1749150676063,0.3640144,2572.8,2572.7,3.88687738]
[1749150676461,6.518,2572.8,2572.2,0.64363844]
[1749150676693,6.518,2572.8,2572.7,3.88696699]
[1749150676895,6.88251086,2572.8,2572.7,3.88696699]
[1749150677300,0.36451086,2572.8,2572.7,3.88696699]
[1749150677474,6.88251086,2572.8,2572.7,4.66437345]
[1749150678681,6.88251086,2572.8,2572.7,3.88696699]
[1749150679423,6.88251086,2572.8,2572.2,0.64363844]
[1749150679585,0.36451086,2572.7,2572.0,0.8016]
[1749150679767,6.518,2572.8,2572.6,3.88711809]
[1749150679958,0.36602938,2572.7,2572.6,3.88711809]
[1749150680659,7.49337822,2572.7,2572.6,3.88711809]
[1749150681377,0.97537822,2572.7,2572.6,3.88711809]
[1749150681713,6.88402938,2572.7,2572.6,3.88711809]
[1749150683808,6.88402938,2572.7,2572.4,3.88730592]
[1749150684006,0.36602938,2572.6,2572.5,3.88722482]
[1749150684302,6.88402938,2572.6,2572.5,3.88722482]
[1749150685780,0.36602938,2572.6,2572.5,3.88722482]
[1749150686095,6.88402938,2572.6,2572.5,3.88722482]
[1749150686287,6.88402938,2572.6,2572.5,4.66468898]
[1749150688102,0.36602938,2572.6,2572.5,4.66468898]
[1749150688403,6.88402938,2572.6,2572.5,4.66468898]
[1749150688613,0.36602938,2572.6,2572.5,5.21468898]
[1749150688808,0.98125568,2572.6,2572.5,6.02648898]
[1749150689105,0.98118963,2572.6,2572.5,6.02648898]
[1749150689861,0.36602938,2572.6,2572.5,6.02648898]
[1749150692020,0.98216088,2572.6,2572.5,6.02648898]
[1749150692236,0.36602938,2572.6,2572.5,6.02648898]
[1749150692442,0.98231968,2572.6,2572.5,6.02648898]
[1749150692598,0.36602938,2572.6,2572.5,6.02648898]
[1749150693832,0.36602938,2572.6,2572.5,4.66468898]
[1749150693998,0.36602938,2572.6,2572.5,3.88722482]
[1749150694441,0.36602938,2572.6,2572.4,3.88739115]
[1749150694758,0.36602938,2572.5,2572.4,3.88730607]
[1749150695249,0.36602938,2572.5,2572.2,1.746]
[1749150695414,6.88302938,2572.4,2572.3,3.88753842]
[1749150695603,6.88302938,2572.4,2572.0,3.88793939]
[1749150695822,0.36602938,2572.3,2572.2,3.88768582]
[1749150696823,2.16602938,2572.3,2572.2,3.88768582]
[1749150698556,8.68302938,2572.3,2572.2,3.88768582]
[1749150699425,2.16602938,2572.3,2572.2,4.43768582]
[1749150699743,2.78328148,2572.3,2572.2,5.20048582]
[1749150699945,2.16602938,2572.3,2572.2,6.15610364]
[1749150700355,2.78328148,2572.3,2572.2,6.15610364]
[1749150700863,2.16602938,2572.3,2572.2,6.15610364]
[1749150701922,0.6172521,2572.4,2572.3,20.43757143]
[1749150702120,0.6172521,2572.5,2572.4,4.6933203]
[1749150702363,0.6172521,2572.5,2572.4,7.15867314]
[1749150702523,0.6172521,2572.6,2572.5,4.43726919]
[1749150703375,6.517,2573.0,2572.5,4.43726919]
[1749150703376,0.6172521,2572.7,2572.6,4.43711809]
[1749150704788,0.6172521,2572.8,2572.7,3.88696699]
[1749150705669,0.6172521,2572.9,2572.8,3.88681592]
[1749150705869,0.6172521,2572.9,2572.8,4.66664757]
[1749150706664,6.516,2573.0,2572.8,4.66664757]
[1749150706665,7.1332521,2573.0,2572.9,3.88666485]
[1749150707165,0.6172521,2573.0,2572.9,3.88666485]
[1749150708197,0.61806509,2573.0,2572.9,3.88659634]
[1749150708555,7.13406509,2573.1,2573.0,3.88651379]
[1749150709510,6.516,2573.1,2573.0,3.88651379]
[1749150709711,6.516,2573.1,2572.9,3.88659634]
[1749150709712,7.13406509,2573.1,2572.9,3.88662114]
[1749150709994,7.13406509,2573.1,2573.0,3.88651379]
[1749150710161,6.516,2573.1,2572.5,4.43717665]
[1749150710358,0.46341619,2572.7,2572.2,0.95561782]
[1749150710587,6.516,2572.6,2572.5,3.88713981]
[1749150710771,6.97941619,2572.6,2572.5,3.88713981]
[1749150711626,16.32087123,2572.6,2571.8,0.7614]
[1749150711790,0.46341619,2572.3,2572.1,3.8877945]
[1749150712111,6.516,2572.2,2572.1,3.88787372]
[1749150713202,6.516,2572.2,2572.1,4.66546078]
[1749150713908,6.88655682,2572.2,2572.1,4.66546078]
[1749150714781,6.88655682,2572.2,2571.3,0.7584]
[1749150714782,16.69142805,2572.2,2571.3,0.7584]
[1749150714969,0.46310901,2572.0,2571.4,3.88893209]
[1749150715168,16.93875087,2572.2,2571.4,3.88893209]
[1749150715169,0.83366583,2571.9,2571.8,3.888206]
[1749150715411,0.37055682,2571.9,2571.8,3.888206]
[1749150717596,0.37055682,2571.9,2571.6,3.88857429]
[1749150717597,11.42943706,2571.9,2571.6,3.88858403]
[1749150717801,6.88655682,2571.8,2571.7,3.88847843]
[1749150719578,6.88655682,2571.8,2571.1,0.02]
[1749150719778,6.88655682,2571.8,2571.6,3.88861075]
[1749150719779,0.37055682,2571.7,2571.6,3.88861075]
[1749150720325,0.37055682,2571.7,2571.3,3.88900969]
[1749150720491,6.97910901,2571.8,2571.1,0.02]
[1749150720492,3.88893386,2571.4,2571.1,0.02]
[1749150720674,0.8214,2571.2,2571.1,0.02]
[1749150720985,23.70795682,2571.2,2571.1,0.02]
[1749150721814,28.05862459,2571.2,2571.1,0.02]
[1749150722021,31.88478915,2571.2,2571.1,0.02]
[1749150722377,33.62978915,2571.2,2571.1,0.02]
[1749150723120,44.05254002,2571.2,2571.1,0.02]
[1749150723821,43.43466038,2571.2,2571.1,0.02]
[1749150724006,44.05254002,2571.2,2571.1,0.02]
[1749150724489,35.7873431,2571.2,2571.1,0.02]
[1749150724821,43.43666038,2571.2,2571.1,0.02]
[1749150725181,43.89654003,2571.2,2571.1,0.02]
[1749150725379,27.84338872,2571.2,2571.1,0.02]
[1749150725584,33.90150907,2571.2,2571.1,0.02]
[1749150726405,1.19195682,2571.2,2571.1,3.90938586]
[1749150726608,3.00478828,2571.6,2571.4,3.88885265]
[1749150726798,16.32287123,2571.5,2571.1,0.02]
[1749150726991,16.32287123,2571.5,2571.2,3.88912296]
[1749150727310,16.32287123,2571.5,2571.3,3.88907463]
[1749150727688,6.518,2571.4,2571.3,3.88908334]
[1749150728221,6.518,2571.4,2571.2,3.88915624]
[1749150728423,6.518,2571.4,2571.3,3.88908334]
[1749150728594,22.518,2571.4,2571.1,3.90938074]
[1749150729518,22.518,2571.4,2571.1,3.90932048]
[1749150729715,22.518,2571.4,2571.1,3.90936371]
[1749150729918,9.80487123,2571.2,2571.1,0.02]
[1749150730082,25.80487123,2571.2,2571.1,0.02]
[1749150730480,30.49760582,2571.2,2571.1,0.02]
[1749150730906,26.60837123,2571.2,2571.1,0.02]
[1749150731919,34.76580538,2571.2,2571.1,0.02]
[1749150733227,30.87657079,2571.2,2571.1,0.02]
[1749150733446,27.36658447,2571.2,2571.1,0.02]
[1749150733627,37.77481906,2571.2,2571.1,0.02]
[1749150734341,9.80487123,2570.5,2570.2,3.89066239]
[1749150734546,9.80487123,2570.5,2570.2,3.89074282]
[1749150734547,6.519,2570.4,2570.2,3.89074282]
[1749150734835,6.519,2570.4,2570.3,3.89059642]
[1749150735412,6.519,2570.4,2570.1,0.02]
[1749150735737,6.519,2570.4,2570.1,3.9108604]
[1749150735738,9.80487123,2570.2,2570.1,3.9108604]
[1749150736558,16.0,2570.4,2570.3,3.89050222]
[1749150736708,22.88637195,2570.4,2570.2,3.89068956]
[1749150737038,22.519,2570.4,2570.2,3.89073473]
[1749150737335,0.36755431,2570.3,2570.2,3.89073473]
[1749150737766,6.519,2570.4,2570.3,3.89059642]
[1749150738105,0.8245,2570.9,2570.7,3.88989375]
[1749150738309,0.36752502,2570.8,2570.7,3.88989375]
[1749150738609,0.45913306,2571.1,2570.6,3.89014113]
[1749150738610,0.3909304,2571.2,2571.0,3.88940109]
[1749150738810,32.69169197,2571.1,2571.0,3.88940109]
[1749150739428,16.69269197,2571.1,2571.0,3.88940109]
[1749150739623,0.36782074,2571.1,2571.0,4.66730606]
[1749150740027,6.88782074,2571.1,2571.0,4.66730606]
[1749150740356,0.36782074,2571.1,2571.0,4.66730606]
[1749150740645,6.88782074,2571.1,2571.0,4.66730606]
[1749150740809,6.52,2571.1,2571.0,4.66730606]
[1749150741267,1.32116593,2571.3,2571.2,3.88923459]
[1749150741561,1.32116593,2571.3,2571.2,5.91962449]
[1749150742834,1.68998133,2571.3,2570.3,2.5759]
[1749150743034,1.68998133,2571.3,2570.4,3.89044506]
[1749150743035,10.17368663,2571.2,2570.4,3.89044506]
[1749150743220,0.3688154,2571.1,2570.9,3.88959573]
[1749150743422,6.8888154,2571.0,2570.9,3.88959573]
[1749150744061,1.78237861,2571.3,2571.1,3.88938586]
[1749150744211,1.78237861,2571.3,2571.2,5.26913459]
[1749150744212,1.32116593,2571.3,2571.2,5.26913459]
[1749150744557,1.32116593,2571.3,2571.2,4.71913459]
[1749150748452,1.32116593,2571.3,2571.2,3.88923459]
[1749150749324,1.32116593,2571.3,2571.0,0.7831]
[1749150749565,1.32116593,2571.3,2571.2,3.88923459]
[1749150749746,1.32116593,2571.3,2571.0,1.11500434]
[1749150749917,1.32116593,2571.3,2571.1,3.88928316]
[1749150750456,1.32116593,2571.3,2571.2,3.88923459]
[1749150751429,7.85116593,2571.3,2571.2,3.88923459]
[1749150751752,7.85116593,2571.3,2571.2,4.66709377]
[1749150751958,1.32116593,2571.3,2571.2,4.66709377]
[1749150752194,7.85316593,2571.3,2571.2,4.66709377]
[1749150753665,1.32116593,2571.3,2571.2,4.66709377]
[1749150753869,7.84816593,2571.3,2571.2,4.66709377]
[1749150754171,7.84716593,2571.3,2571.2,4.66709377]
[1749150756082,8.21654635,2571.3,2571.2,4.66709377]
[1749150758541,8.21654635,2571.3,2571.2,3.88923459]
[1749150759080,8.96714635,2571.3,2570.5,0.758]
[1749150759279,10.17425165,2571.2,2571.1,3.88936309]
[1749150759447,10.17425165,2571.2,2571.0,3.88944702]
[1749150759647,0.36938042,2571.1,2571.0,3.88944702]
[1749150760083,0.36938042,2571.1,2570.5,0.758]
[1749150760243,9.80487123,2571.2,2570.9,3.8895979]
[1749150760244,0.36938042,2571.0,2570.9,3.8895979]
[1749150760678,0.36938042,2571.0,2570.7,3.88987402]
[1749150760883,6.88838042,2570.9,2570.3,4.71909642]
[1749150761194,10.17425165,2570.8,2570.6,3.89007276]
[1749150761475,0.36922856,2570.7,2570.6,3.89007267]
[1749150762001,0.36922856,2570.7,2570.4,3.89037918]
[1749150762154,10.55547123,2570.8,2570.6,3.89014237]
[1749150762477,0.36918289,2570.7,2570.4,3.89037348]
[1749150762684,0.36918289,2570.6,2570.5,3.89029371]
[1749150764887,6.88818289,2570.6,2570.5,3.89029371]
[1749150765273,0.36918289,2570.6,2570.5,3.89029371]
[1749150765582,16.0,2571.2,2571.1,3.88938586]
[1749150765887,0.36931617,2571.2,2571.1,3.88938586]
[1749150766090,6.88831617,2571.2,2571.1,3.88938586]
[1749150766293,22.88831617,2571.2,2571.1,3.88938586]
[1749150766889,22.88831617,2571.2,2571.0,3.88942516]
[1749150767089,0.36931617,2571.1,2571.0,3.88942516]
[1749150767597,6.88831617,2571.1,2571.0,3.88942516]
[1749150767892,3.88963035,2571.0,2570.5,0.7676]
[1749150768054,0.36931617,2570.9,2570.2,3.8907478]
[1749150768255,26.59317123,2571.0,2570.1,0.7817]
[1749150768256,0.36931617,2570.8,2570.1,0.7817]
[1749150768495,6.88831617,2570.7,2570.6,3.89014237]
[1749150768948,6.88831617,2570.7,2570.1,0.7817]
[1749150768949,16.6931874,2570.7,2570.1,4.67254559]
[1749150769153,16.6931874,2570.7,2570.5,3.89022105]
[1749150769154,0.36931617,2570.6,2570.5,3.89022105]
[1749150772018,0.36931617,2570.6,2570.4,3.89042257]
[1749150772019,0.36931617,2570.6,2570.4,3.89036003]
[1749150772304,1.18891617,2570.5,2570.3,3.89056998]
[1749150772472,0.36931617,2570.4,2570.3,3.89056998]
[1749150773084,0.36931617,2570.4,2570.2,3.89066742]
[1749150773270,6.88931617,2570.3,2570.2,3.89066742]
[1749150773468,6.88931617,2570.3,2570.2,3.8907478]
[1749150773906,6.88931617,2570.3,2570.1,3.91082848]
[1749150774083,0.36931617,2570.2,2570.1,3.91082848]
[1749150775208,0.36931617,2570.2,2570.1,0.02]
[1749150775975,2.42778046,2570.2,2570.1,0.02]
[1749150776211,19.24098046,2570.2,2570.1,0.02]
[1749150776388,17.18251617,2570.2,2570.1,0.02]
[1749150778114,33.5083874,2570.2,2570.1,0.02]
[1749150778933,37.3991352,2570.2,2570.1,0.02]
[1749150779636,38.01478769,2570.2,2570.1,0.02]
[1749150780010,37.3991352,2570.2,2570.1,0.02]
[1749150780342,43.04605192,2570.2,2570.1,0.02]
[1749150781034,33.5083874,2570.2,2570.1,0.02]
[1749150781197,37.3991352,2570.2,2570.1,0.02]
[1749150785494,26.9873874,2570.2,2570.1,0.02]
[1749150785731,17.18251617,2570.2,2570.1,0.02]
[1749150785931,17.18251617,2570.2,2570.1,3.91089918]
[1749150785932,22.89131617,2570.2,2570.1,3.91089918]
[1749150786349,16.36931617,2570.2,2570.1,3.91089918]
[1749150786550,22.89131617,2570.2,2570.1,4.69109345]
[1749150786963,22.89131617,2570.2,2570.1,0.02]
[1749150788314,6.89131617,2570.2,2570.1,0.02]
[1749150789466,6.89130793,2570.2,2570.1,0.02]
[1749150790186,0.36930793,2570.2,2570.1,0.02]
[1749150790381,6.89130793,2570.2,2570.1,0.02]
[1749150790946,0.36930793,2570.2,2570.1,4.30200279]
[1749150791141,6.89130793,2570.2,2570.1,4.30200279]
[1749150791881,0.36930793,2570.2,2570.1,4.30200279]
[1749150792082,6.89130793,2570.2,2570.1,4.30200279]
[1749150792377,0.36930793,2570.2,2570.1,4.30200279]
[1749150792582,6.89130793,2570.2,2570.1,5.06460279]
[1749150792979,6.89130793,2570.2,2570.1,0.41110361]
[1749150793186,6.89130793,2570.2,2570.1,3.91089918]
[1749150793340,7.67910793,2570.2,2570.1,3.91089918]
[1749150793548,23.67910793,2570.2,2570.1,0.02]
[1749150793747,27.56985573,2570.2,2570.1,0.02]
[1749150793957,23.67910793,2570.2,2570.1,0.02]
[1749150794482,17.15710793,2570.2,2570.1,3.91089918]
[1749150794684,16.36930793,2570.2,2570.1,3.91089918]
[1749150794843,22.89130793,2570.2,2570.1,3.91089918]
[1749150795042,22.89130793,2570.2,2570.1,0.02]
[1749150795244,26.39709109,2570.2,2570.1,0.02]
[1749150795447,27.01274358,2570.2,2570.1,0.02]
[1749150796868,30.90349138,2570.2,2570.1,0.02]
[1749150797174,27.01274358,2570.2,2570.1,0.02]
[1749150797410,26.39709109,2570.2,2570.1,0.02]
[1749150797986,16.98589239,2570.2,2570.1,0.02]
[1749150798189,22.89130793,2570.2,2570.1,3.91089918]
[1749150798426,22.522,2570.2,2570.1,0.02]
[1749150799301,27.24897379,2570.2,2570.1,0.02]
[1749150800426,36.69209538,2570.2,2570.1,0.02]
[1749150800592,28.07437379,2570.2,2570.1,0.02]
[1749150802311,16.0,2570.2,2570.1,4.30200201]
[1749150802507,27.24897379,2570.2,2570.1,3.91089918]
[1749150802710,27.24897379,2570.2,2570.1,0.02]
[1749150805348,36.65959538,2570.2,2570.1,0.02]
[1749150805524,16.0,2570.1,2569.3,0.802]
[1749150805725,16.0,2570.1,2569.3,4.69407346]
[1749150805726,4.72697379,2569.4,2569.3,4.69407346]
[1749150805921,11.24897379,2569.4,2569.3,4.69407346]
[1749150806607,11.24897379,2569.4,2569.2,3.89222994]
[1749150806807,28.37387117,2569.4,2569.1,0.02]
[1749150807057,20.72697379,2569.2,2569.1,3.91241368]
[1749150807747,20.72697379,2569.2,2569.1,0.02]
[1749150808129,20.72697379,2569.2,2569.1,3.91241368]
[1749150809370,21.56121665,2569.2,2569.1,3.91241368]
[1749150809665,21.56119358,2569.2,2569.1,3.91241368]
[1749150810761,21.56119358,2569.2,2569.1,0.02]
[1749150811073,25.14901837,2569.2,2569.1,0.02]
[1749150811871,25.14901837,2569.2,2568.6,3.89310816]
[1749150811872,0.7854,2568.7,2567.9,0.39203624]
[1749150812050,20.72697379,2568.2,2568.1,3.91383069]
[1749150812265,21.09790727,2568.2,2568.1,3.91383069]
[1749150812459,0.46257315,2568.4,2568.3,3.89362613]
[1749150812460,20.72697379,2568.4,2568.3,3.89362613]
[1749150812780,6.522,2568.2,2568.1,4.67093069]
[1749150812928,6.89142925,2568.2,2568.1,5.52742954]
[1749150813123,6.522,2568.2,2568.1,5.52742954]
[1749150814072,11.24897379,2568.2,2568.1,3.91383069]
[1749150814275,11.24897379,2568.2,2568.1,0.02]
[1749150814474,27.61762559,2568.2,2568.1,0.02]
[1749150815180,32.34459938,2568.2,2568.1,0.02]
[1749150815321,35.70776663,2568.2,2568.1,0.02]
[1749150815523,16.7872,2568.1,2567.2,0.77]
[1749150815760,4.72697379,2567.3,2567.2,4.66523841]
[1749150815968,11.24997379,2567.3,2567.2,4.66523841]
[1749150816180,0.7872,2568.1,2567.4,3.89499104]
[1749150816358,4.72697379,2567.5,2567.4,3.89499104]
[1749150816544,11.24997379,2567.5,2567.4,3.89499104]
[1749150817281,16.37345628,2567.5,2567.4,3.89499104]
[1749150817845,16.37345628,2567.5,2567.1,0.02]
[1749150818042,16.37345628,2567.5,2567.1,3.91544622]
[1749150818043,25.85045628,2567.2,2567.1,3.91544622]
[1749150818297,29.26030191,2567.2,2567.1,0.02]
[1749150818497,35.80130191,2567.2,2567.1,0.02]
[1749150818787,16.0,2567.2,2567.1,3.91544622]
[1749150819085,22.548,2567.2,2567.1,3.91544622]
[1749150819385,6.547,2567.2,2567.1,3.91544622]
[1749150819586,0.794,2568.0,2567.8,3.89438429]
[1749150819785,0.794,2568.0,2567.9,3.89423264]
[1749150820086,11.59745628,2568.2,2567.6,3.89465888]
[1749150820087,9.85045628,2568.2,2567.6,3.89465888]
[1749150820401,0.36673856,2568.1,2568.0,3.89408099]
[1749150820602,6.551,2568.1,2568.0,3.89397201]
[1749150820806,26.60725628,2568.3,2567.6,3.89460872]
[1749150820807,0.7568,2568.3,2567.6,3.89460872]
[1749150820972,0.7568,2568.3,2568.2,3.89377774]
[1749150821152,7.3158,2568.3,2568.2,3.89377774]
[1749150821549,7.3158,2568.3,2568.1,3.89381994]
[1749150821755,7.3158,2568.3,2568.2,3.89377774]
[1749150822089,7.3158,2568.3,2568.0,3.89401154]
[1749150822090,10.99931326,2568.3,2568.0,3.89401678]
[1749150822294,25.85045628,2568.1,2568.0,3.89401678]
[1749150822516,16.0,2568.1,2568.0,3.89401678]
[1749150822832,22.56,2568.1,2568.0,3.89401678]
[1749150823218,22.561,2568.1,2568.0,3.89401678]
[1749150823714,22.56,2568.1,2568.0,3.89401678]
[1749150824286,16.0,2568.0,2567.8,3.89432884]
[1749150824515,32.41045628,2568.1,2567.5,4.65945892]
[1749150824516,16.41045628,2568.1,2567.5,0.7647]
[1749150824674,32.41045628,2568.1,2568.0,3.89408099]
[1749150824874,32.77788427,2568.1,2568.0,3.89408099]
[1749150825322,32.77788427,2568.1,2567.3,1.747]
[1749150825323,16.0,2568.0,2566.6,3.8960936]
[1749150825485,33.60048427,2568.1,2567.7,3.89441708]
[1749150825486,25.85045628,2567.8,2567.7,3.89441708]
[1749150825681,26.21788427,2567.8,2567.7,3.89441708]
[1749150825990,16.36742799,2567.8,2567.7,3.89441708]
[1749150826177,22.569,2567.8,2567.7,3.89441708]
[1749150826683,22.93791578,2567.8,2567.7,3.89441708]
[1749150826878,22.93791578,2567.8,2567.6,3.89461454]
[1749150827098,10.21837344,2567.7,2567.6,3.89461454]
[1749150827317,16.0,2567.6,2567.5,3.89476157]
[1749150827544,16.36791716,2567.6,2567.1,4.74214368]
[1749150827756,9.85045628,2567.4,2567.2,3.89517921]
[1749150827953,25.85045628,2567.7,2567.5,3.89475195]
[1749150828120,16.0,2567.5,2567.4,3.89493707]
[1749150828311,16.36820694,2567.5,2567.4,3.89493707]
[1749150828851,3.1213642,2567.9,2567.8,0.7751]
[1749150828852,0.46257315,2567.9,2567.8,0.7751]
[1749150829144,6.576,2567.9,2567.8,4.66935311]
[1749150829343,6.576,2567.9,2567.8,3.89425311]
[1749150831648,6.576,2567.9,2567.4,0.77900253]
[1749150831649,16.0,2567.8,2567.4,0.77900253]
[1749150831858,16.0,2567.4,2567.1,0.02]
[1749150832063,6.577,2567.3,2567.1,0.02]
[1749150832409,6.577,2567.3,2567.1,3.91536021]
[1749150832615,6.577,2567.3,2567.2,3.89529448]
[1749150832824,16.0,2567.4,2567.3,3.89514275]
[1749150833028,22.581,2567.4,2567.3,3.89514275]
[1749150833254,0.46257315,2567.6,2567.5,3.89483933]
[1749150833428,16.46112627,2567.7,2567.6,3.89468764]
[1749150833624,23.04312157,2567.7,2567.6,3.89468764]
[1749150834453,16.0,2567.7,2567.6,3.89468764]
[1749150834753,3.1428642,2568.0,2567.8,3.89438429]
[1749150834754,0.46112157,2567.9,2567.8,3.89438429]
[1749150834978,7.04212157,2567.9,2567.7,3.89446851]
[1749150835183,16.0,2567.8,2567.7,3.89446851]
[1749150835347,16.46112157,2567.8,2567.7,3.89446851]
[1749150836558,16.0,2567.8,2567.7,3.89446851]
[1749150836763,16.0,2567.8,2567.6,3.8946708]
[1749150836764,0.46112157,2567.9,2567.8,3.89438429]
[1749150836964,16.0,2567.8,2567.7,3.89445552]
[1749150837160,16.46112157,2567.8,2567.7,3.89453596]
[1749150837692,16.0,2567.8,2567.7,3.89453596]
[1749150838391,0.46112157,2567.9,2567.8,3.89438429]
[1749150838574,0.46112157,2568.1,2568.0,3.89408099]
[1749150838778,0.46112157,2568.1,2567.9,3.89416049]
[1749150838779,7.03512157,2568.1,2567.9,3.89416049]
[1749150839086,16.0,2568.0,2567.9,3.89416049]
[1749150839466,16.46139758,2568.0,2567.9,3.89416049]
[1749150840290,16.0,2568.0,2567.7,0.7789198]
[1749150840589,0.46189563,2567.9,2567.7,3.89443351]
[1749150840790,7.4024112,2567.8,2567.6,3.89461187]
[1749150840998,0.36951557,2567.7,2567.3,1.58524372]
[1749150841151,0.36951557,2567.7,2567.1,0.02]
[1749150841152,9.85045628,2567.4,2567.1,0.02]
[1749150841351,24.2424112,2567.3,2567.1,0.02]
[1749150841556,0.36951557,2567.2,2567.1,0.02]
[1749150842491,20.26481005,2567.2,2567.1,0.02]
[1749150842900,0.831,2567.1,2565.7,0.7777]
[1749150843067,25.85045628,2566.2,2566.1,3.9168746]
[1749150843250,22.96951557,2566.2,2566.1,0.02]
[1749150843452,0.36951557,2566.2,2566.1,3.91696426]
[1749150843696,0.61609013,2566.8,2566.1,0.8115]
[1749150843697,0.4620676,2566.8,2566.1,0.8115]
[1749150843855,22.97258713,2566.7,2566.6,3.89616338]
[1749150844053,6.97658713,2566.7,2566.6,4.28577972]
[1749150844255,6.97658713,2566.7,2566.6,5.08367972]
[1749150844697,0.4620676,2567.2,2567.1,3.89544622]
[1749150844864,6.97563733,2567.2,2567.1,3.89544622]
[1749150845192,0.36963733,2567.2,2567.1,3.89544622]
[1749150845396,6.97463733,2567.2,2567.1,4.67454845]
[1749150845566,0.36963733,2567.2,2567.1,4.67454845]
[1749150845773,6.97363733,2567.2,2567.1,5.48444845]
[1749150846373,6.97363733,2567.2,2567.1,4.70534622]
[1749150846573,0.36963733,2567.2,2567.1,4.70534622]
[1749150846804,6.97063733,2567.2,2567.1,4.70534622]
[1749150846973,0.36963733,2567.2,2567.1,4.70534622]
[1749150847298,16.0,2567.9,2567.1,4.70534622]
[1749150847299,0.4620676,2567.7,2567.6,3.89468764]
[1749150847510,22.97466512,2567.7,2567.6,3.89468764]
[1749150847718,22.97466512,2567.7,2567.5,3.89476163]
[1749150847890,22.97466512,2567.7,2567.1,4.7053091]
[1749150847891,0.36966512,2567.6,2567.4,3.89489564]
[1749150848092,0.36966512,2567.6,2567.1,0.8099]
[1749150848093,0.36966512,2567.5,2567.1,0.8099]
[1749150848429,0.36966512,2567.4,2567.3,3.89506343]
[1749150848924,0.36966512,2567.4,2567.3,4.75508922]
[1749150851722,0.36966512,2567.4,2567.3,3.89506343]
[1749150851933,0.36966512,2567.4,2567.1,3.89529843]
[1749150852144,6.97066512,2567.3,2567.1,3.89533621]
[1749150852436,6.97066512,2567.3,2566.9,3.89574948]
[1749150852437,16.36966512,2567.2,2566.9,3.89574948]
[1749150852597,16.36966512,2567.2,2566.5,0.7663]
[1749150852598,0.36966512,2567.1,2567.0,3.89559797]
[1749150852790,0.36966512,2567.1,2566.9,3.89566953]
[1749150852985,16.0,2567.2,2567.1,3.89544622]
[1749150853190,16.0,2567.2,2566.9,3.89570343]
[1749150853191,16.36969595,2567.2,2566.9,3.89567667]
[1749150853423,0.36969595,2567.1,2566.9,3.89567667]
[1749150853761,0.36969595,2567.0,2566.9,3.89567667]
[1749150853913,0.36969595,2567.0,2566.9,3.89574973]
[1749150854728,0.7623,2566.9,2566.1,3.91682179]
[1749150855022,0.36969595,2566.8,2566.6,3.89620509]
[1749150855223,0.36969595,2566.7,2566.6,4.70040509]
[1749150855427,6.604,2566.7,2566.6,6.54500257]
[1749150855623,6.604,2566.7,2566.6,3.89608317]
[1749150857589,16.4620676,2567.3,2566.7,3.89605329]
[1749150857797,6.96763945,2567.2,2567.1,3.89544622]
[1749150858102,16.36963464,2567.2,2567.1,3.89544622]
[1749150858298,6.96663464,2567.2,2567.1,3.89544622]
[1749150858700,22.96663464,2567.2,2566.8,3.89578096]
[1749150858915,16.36963464,2567.1,2566.6,3.89613375]
[1749150859129,16.36963464,2567.1,2566.2,3.8968124]
[1749150859130,1.12393464,2567.0,2566.2,0.7594]
[1749150859302,16.36963464,2566.9,2566.5,3.89626326]
[1749150859490,16.0,2566.7,2566.6,3.89620509]
[1749150859687,0.36963464,2566.7,2566.6,3.89620509]
[1749150859929,6.603,2566.7,2566.6,0.77925482]
[1749150860130,6.603,2566.7,2566.6,3.89620509]
[1749150860328,6.97266934,2566.7,2566.5,3.8962866]
[1749150860537,6.97266934,2566.7,2566.1,0.66812218]
[1749150860538,16.36964941,2566.6,2566.1,0.66812218]
[1749150860839,0.36955428,2566.5,2566.4,3.89645777]
[1749150860990,6.604,2566.8,2566.7,3.89604519]
[1749150861195,22.97355792,2566.8,2566.5,3.89629232]
[1749150861415,0.36955792,2566.7,2566.6,3.89611485]
[1749150861817,0.36955792,2566.7,2566.1,4.56497136]
[1749150862038,0.36955792,2566.7,2566.1,0.02]
[1749150862039,4.67604156,2566.5,2566.1,0.02]
[1749150862241,6.97653822,2566.4,2566.1,0.02]
[1749150862438,0.36953822,2566.3,2566.1,0.02]
[1749150862638,6.607,2566.4,2566.1,3.91692743]
[1749150862941,0.36934709,2566.3,2566.1,3.9168738]
[1749150863145,6.607,2566.4,2566.1,0.02]
[1749150863442,17.49764786,2566.3,2566.1,0.02]
[1749150863739,0.36934268,2566.2,2566.1,0.02]
[1749150865218,1.18674268,2566.2,2566.1,0.02]
[1749150865917,1.18614991,2566.2,2566.1,0.02]
[1749150866714,14.93341859,2566.2,2566.1,0.02]
[1749150866919,30.93341859,2566.2,2566.1,0.02]
[1749150867139,34.83433531,2566.2,2566.1,0.02]
[1749150867711,24.98387903,2566.2,2566.1,0.02]
[1749150869447,26.78387903,2566.2,2566.1,0.02]
[1749150870934,22.88706663,2566.2,2566.1,0.02]
[1749150871245,35.16887903,2566.2,2566.1,0.02]
[1749150871547,27.37114991,2566.2,2566.1,0.02]
[1749150871718,27.37014991,2566.2,2566.1,0.02]
[1749150871925,25.57814991,2566.2,2566.1,0.02]
[1749150872610,29.47496231,2566.2,2566.1,0.02]
[1749150872811,32.99122511,2566.2,2566.1,0.02]
[1749150873658,33.54122511,2566.2,2566.1,0.02]
[1749150873823,0.8133,2565.8,2565.1,0.02]
[1749150874027,4.71124202,2565.5,2565.1,0.02]
[1749150874551,16.0,2565.3,2565.1,0.02]
[1749150874736,6.596,2565.2,2565.1,0.02]
[1749150875252,6.596,2565.2,2565.1,3.91848348]
[1749150875647,6.593,2565.2,2565.1,3.91848348]
[1749150876452,0.8133,2565.5,2565.1,3.91848348]
[1749150876453,0.8133,2565.5,2565.1,0.02]
[1749150876624,6.591,2565.4,2565.1,0.02]
[1749150876823,16.0,2565.4,2565.3,3.89817955]
[1749150877023,22.592,2565.4,2565.3,3.89817955]